[Event "Mitropa Cup Women 2024"]
[Site "Apolda"]
[Date "2024.02.18"]
[Round "4.1"]
[White "Hagarova, Zuzana"]
[Black "Heinemann, Josefine"]
[Result "1-0"]
[ECO "B95"]
[WhiteElo "2280"]
[BlackElo "2361"]
[Annotator "TA"]
[PlyCount "121"]
[EventDate "2024.02.15"]
[EventType "team-tourn"]
[EventCountry "GER"]
[SourceTitle "playchess.com"]
[Source "ChessBase"]
[SourceQuality "1"]
[WhiteTeam "Slovakia"]
[BlackTeam "Germany"]
[WhiteTeamCountry "SVK"]
[BlackTeamCountry "GER"]
[TimeControl "40/5400+30:1800+30"]

{[%evp 15,121,-31,-13,-19,-29,-83,-82,-99,-81,-192,-200,-203,-193,-214,-149,-136,-138,-128,-119,-128,-128,-168,-70,-73,-46,-70,-42,-55,-20,-57,149,29,88,0,254,245,243,-102,0,0,0,0,337,319,769,-10,0,0,0,-23,0,0,0,0,0,0,0,0,43,40,522,498,418,124,813,137,373,320,368,361,374,381,375,365,347,283,752,717,761,657,1342,1305,1068,976,1886,2204,29967,29969,29968,29969,29971,29967,29974,29971,29974,29975,29975,29975,29975,29972,29973,29974,29979,29980,29980,29981,29981,29982]} 1. e4 {[%emt 0:00:05]} c5 {[%emt 0:00:06]} 2. Nf3 {[%emt 0:00:06]} d6 {[%emt 0:00:05]} 3. d4 {[%emt 0:00:06]} cxd4 {[%emt 0:00:05]} 4. Nxd4 {[%emt 0:00:04]} Nf6 {[%emt 0:00:05]} 5. Nc3 {[%emt 0:00:05]} a6 {[%emt 0:00:04]} 6. Bg5 {[%emt 0:00:28]} e6 {[%emt 0:00:07]} 7. Qd3 {[%emt 0:00:25]} Nbd7 {[%emt 0:01:58]} 8. O-O-O {[%emt 0:01:31]} b5 $1 {[%emt 0:00:22]} 9. f4 {[%emt 0:02:55][%cal Oe4e5]} b4 {[%emt 0:01:00][%cal Od7c5]} 10. Bxf6 {[%emt 0:09:32]} (10. Na4 $11 {remains equal.}) 10... Nxf6 $17 {[%emt 0:02:30]} 11. Nce2 {[%emt 0:00:41][%cal Og2g4] Black is better.} Bb7 {[%emt 0:05:11]} 12. e5 {[%emt 0:16:50]} (12. Ng3 $17 {was called for.}) 12... dxe5 $1 $19 {[%emt 0:09:06]} 13. fxe5 {[%emt 0:00:48]} Ne4 {[%emt 0:01:17]} 14. Qe3 {[%emt 0:09:55][%cal Od4e6] Repels Nf2} Qb6 {[%emt 0:04:42]} 15. Ng3 {[%emt 0:07:58]} Nxg3 {[%emt 0:02:48]} 16. Qxg3 {[%emt 0:01:34]} g6 {[%emt 0:02:11] aiming for ...Rd8.} 17. Bd3 {[%emt 0:10:59][%cal Oc1b1]} Bg7 {[%emt 0:04:02][%cal Oe8g8]} (17... Qxd4 $2 18. Bb5+ axb5 19. Rxd4 $18) 18. h4 {[%emt 0:04:41][%cal Oh4h5]} Qc7 {[%emt 0:12:48]} (18... Qxd4 $2 19. Bb5+ axb5 20. Rxd4 $18) (18... O-O $1 $19 19. Nf3 Qa5) 19. Rhe1 {[%emt 0:07:31]} O-O {[%emt 0:05:46]} 20. h5 $1 {[%emt 0:00:55][%cal Rh5g6]} Bd5 {[%emt 0:02:18] ...Qa5 is the strong threat. This pair of bishops is nice.} (20... gxh5 21. Qg5 $11) 21. Kb1 {[%emt 0:01:55]} a5 {[%emt 0:01:40]} (21... gxh5 22. Qh3 $11) 22. Nb5 {[%emt 0:03:42]} Qb8 {[%emt 0:07:13]} (22... Qc5 $15 {stays ahead.} 23. Nd6 a4) 23. Re2 {[%emt 0:06:28]} (23. Nd6 $16) 23... a4 {[%emt 0:05:22]} (23... Qb6 $11) 24. Rh1 {[%emt 0:09:47]} ({White should play} 24. hxg6 $1 $16 fxg6 25. Rh1) 24... Rd8 $2 {[%emt 0:08:28][%mdl 8192]} (24... Ra5 $1 $11 25. Nd6 b3 26. hxg6 bxa2+ (26... bxc2+ $2 27. Rxc2 Bxa2+ 28. Kxa2 $18) 27. Ka1 fxg6 (27... hxg6 $2 28. Qh4 $18)) 25. hxg6 $1 $18 {[%emt 0:00:42]} hxg6 {[%emt 0:00:06]} 26. Qh4 $2 {[%emt 0:01:31] [#]} (26. Bxg6 $18 f5 (26... Qxb5 $2 27. Bxf7+ Kf8 28. Bg6 $18) (26... fxg6 27. Qxg6 Bxa2+ 28. Kc1 $18) 27. Nd6 Rxd6 28. exd6) 26... Bxa2+ $1 {[%emt 0:04:50][%mdl 512]} 27. Kxa2 $11 {[%emt 0:00:52] Qh7+ would now be deadly.} b3+ {[%emt 0:00:18]} 28. Kb1 $1 {[%emt 0:01:40]} (28. cxb3 $2 Rxd3 (28... axb3+ $2 29. Kb1 $19) 29. Qc4 axb3+ (29... Rxb3 $2 30. Nc7 $19) 30. Kb1 Qd8 $19) 28... bxc2+ $2 {[%emt 0:00:07][%mdl 8192]} (28... Rxd3 $1 $11 {and Black is okay.} 29. cxd3 Qxb5) 29. Rxc2 $18 {[%emt 0:00:08]} (29. Kxc2 Rxd3 (29... Bxe5 $2 30. Qh7+ Kf8 31. Bxg6 $18) 30. Nd4 Rxd4 31. Qxd4 a3 32. bxa3 Qc8+ (32... Rxa3 33. Rb1 $17) 33. Kd1 Rxa3 $15) 29... Rxd3 $2 {[%emt 0:00:16]} (29... Qxe5 30. Bxg6 Qf6 (30... Qxb5 $2 31. Qh7+ Kf8 32. Bxf7 $18)) 30. Nd6 $2 {[%emt 0:00:08]} (30. Qh7+ $18 Kf8 31. Nc7 Bxe5 32. Rf1 (32. Nxa8 Rb3 $18)) 30... Rxd6 {[%emt 0:03:00]} (30... Bxe5 31. Qh7+ Kf8 32. Qxf7#) (30... a3 {seems wilder.} 31. Qh7+ Kf8 32. Rf2 Rxd6 33. Rxf7+ Kxf7 34. Rf1+ Ke8) 31. exd6 {[%emt 0:00:41]} Qxd6 {[%emt 0:00:05] Hoping for ...a3.} 32. Qe4 {[%emt 0:00:47] Some like it hot} Qa6 {[%emt 0:03:56]} 33. Rhc1 $36 {[%emt 0:00:54][%cal Oe4a8][%mdl 2048] Threatens to win with Qxa8+! White has the initiative.} Rb8 {[%emt 0:00:30]} 34. Qf4 {[%emt 0:00:30]} Rf8 {[%emt 0:04:59]} 35. Qc4 {[%emt 0:00:25]} Qa7 {[%emt 0:00:22]} 36. Qb4 {[%emt 0:00:30]} Bf6 {[%emt 0:01:07]} 37. Rc8 {[%emt 0:00:35]} Be7 {[%emt 0:01:01][%mdl 8192] [#] White stays focused until the end.} (37... Rxc8 $14 38. Rxc8+ Kh7) 38. Rxf8+ $1 {[%emt 0:00:21]} Kxf8 {[%emt 0:00:06][%mdl 4096] Endgame. [#] KQR-KQB} (38... Bxf8 39. Rc8 Kg7 40. Qxf8+) 39. Qc3 {[%emt 0:00:18]} (39. Rc8+ $1 $18 Kg7 40. Qc3+ Kh6 (40... Bf6 $2 41. Qh3 $18) 41. Qc1+ (41. Rh8+ Kg5 $18) 41... Kg7 42. Rc7) 39... Bd6 $2 {[%emt 0:04:05][%mdl 8192]} (39... Bd8 $16) 40. Qh8+ {[%emt 0:00:30]} (40. Qf6 $142 {[%cal Rc1c8]} Bc7 41. Rh1) 40... Ke7 {[%emt 0:00:03]} 41. Qh4+ {[%emt 0:02:52]} Kd7 {[%emt 0:03:32]} 42. Qf6 {[%emt 0:01:32]} Be7 {[%emt 0:03:19]} 43. Qxf7 {[%emt 0:00:36]} Qd4 {[%emt 0:00:12][%cal Oa4a3] Prevents Rd1} 44. Qf3 {[%emt 0:04:57] White threatens Qc6+ and mate.} ({Weaker is} 44. Qxg6 a3 45. Qc2 Qxb2+ 46. Qxb2 axb2 47. Kxb2 Bf8 $18) 44... Ke8 {[%emt 0:05:14]} 45. Rd1 {[%emt 0:05:37]} Qc4 {[%emt 0:02:38]} (45... Qe5 46. Qa8+ Kf7 47. Qxa4 Bf6 48. Rd7+ Be7) 46. Qd3 {[%emt 0:01:25]} Qxd3+ {[%emt 0:02:34]} 47. Rxd3 {[%emt 0:00:05] KR-KB} Bc5 {[%emt 0:03:29] Inhibits Rd4.} 48. Rc3 {[%emt 0:05:07]} Bd6 {[%emt 0:00:11]} 49. Rc4 {[%emt 0:00:22]} a3 {[%emt 0:01:02]} 50. b4 {[%emt 0:00:15] And now b5 would win.} e5 {[%emt 0:00:06]} 51. Ka2 {[%emt 0:00:21] White mates.} Ke7 {[%emt 0:00:50]} 52. Kxa3 {[%emt 0:00:17]} Ke6 {[%emt 0:00:20]} 53. Kb3 {[%emt 0:00:16]} g5 {[%emt 0:01:28]} 54. Kc3 {[%emt 0:02:13]} Kd5 {[%emt 0:01:51]} 55. Kd3 {[%emt 0:00:47]} Be7 {[%emt 0:01:03]} 56. b5 {[%emt 0:04:44]} Bd8 {[%emt 0:01:14]} 57. Rc8 {[%emt 0:00:37]} Bb6 {[%emt 0:01:28]} 58. Rg8 {[%emt 0:00:36]} Bd4 {[%emt 0:00:45]} 59. Rxg5 {[%emt 0:00:25]} Kc5 {[%emt 0:00:05]} 60. Ke4 {[%emt 0:00:24]} Kxb5 {[%emt 0:00:06]} 61. Rxe5+ {[%emt 0:00:21] Weighted Error Value: White=0.56/Black=0.56.  Loses game:     	---       	Black=5      Missed win:     	White=3     	---        Mistake:       	White=5     	Black=6      Inaccurate:     	White=2     	Black=5      OK:         	White=6     	Black=9      Best:        	White=3     	Black=3      Strong:       	White=4     	---} 1-0

[Event "Mitropa Cup Women 2024"]
[Site "Apolda"]
[Date "2024.02.18"]
[Round "4.2"]
[White "Schneider, Jana"]
[Black "Walter, Ema"]
[Result "1-0"]
[ECO "C60"]
[WhiteElo "2331"]
[BlackElo "2124"]
[Annotator "TA"]
[PlyCount "63"]
[EventDate "2024.02.15"]
[EventType "team-tourn"]
[EventCountry "GER"]
[SourceTitle "playchess.com"]
[Source "ChessBase"]
[SourceQuality "1"]
[WhiteTeam "Germany"]
[BlackTeam "Slovakia"]
[WhiteTeamCountry "GER"]
[BlackTeamCountry "SVK"]
[TimeControl "40/5400+30:1800+30"]

{[%evp 9,63,12,41,22,24,27,37,21,23,31,37,29,42,57,43,41,60,49,70,80,66,73,124,90,216,211,225,214,214,217,206,171,566,566,534,505,746,756,993,941,1385,1222,1184,1148,1049,973,5027,3396,29987,29985,29985,29986,29989,29990,29990,29985]} 1. e4 {[%emt 0:00:04]} e5 {[%emt 0:00:07]} 2. Nf3 {[%emt 0:00:07]} Nc6 {[%emt 0:00:03]} 3. Bb5 {[%emt 0:00:09]} Nge7 {[%emt 0:00:07][%cal Bg8e7,Be7g6,Bg6f4][%mdl 32]} 4. Nc3 {[%emt 0:00:24]} Ng6 {[%emt 0:00:08]} 5. h4 {[%emt 0:00:41][%cal Bh2h4,Bh4h5][%mdl 32]} Nd4 {[%emt 0:00:13]} 6. h5 {[%emt 0:00:48]} Nf4 {[%emt 0:00:11]} 7. Nxd4 {[%emt 0:00:24]} exd4 {[%emt 0:00:05]} 8. Qf3 {[%emt 0:00:17] White is slightly better.} Bd6 {[%emt 0:00:19]} 9. Ne2 {[%emt 0:01:06]} Nxe2 {[%emt 0:00:07]} 10. Bxe2 {[%emt 0:00:15]} h6 {[%emt 0:00:06]} 11. d3 {[%emt 0:04:09]} a5 {[%emt 0:01:44]} 12. Bd2 {[%emt 0:04:41]} Be5 {[%emt 0:08:02] Black is weak on the light squares} 13. g3 {[%emt 0:04:55]} O-O {[%emt 0:06:50]} 14. Qg2 {[%emt 0:01:10] White is more active.} Ra6 {[%emt 0:22:53]} 15. f4 {[%emt 0:02:08][%cal Bf2f4,Bf4g5,Bg5g6][%mdl 32]} Bf6 {[%emt 0:01:16]} (15... Bd6 $142) 16. O-O-O {[%emt 0:02:16]} Qe8 {[%emt 0:18:13] A mistake that costs the game.} (16... Be7 $16) 17. g4 $18 {[%emt 0:13:28]} Rb6 {[%emt 0:06:54]} 18. g5 {[%emt 0:03:28]} (18. Bxa5 Ra6 19. Bb4 (19. Bxc7 d6 $11) 19... Rxa2 $11) 18... hxg5 {[%emt 0:01:01]} 19. fxg5 {[%emt 0:04:11]} Be7 {[%emt 0:00:04]} 20. Rdg1 $36 {[%emt 0:07:02][%cal Og5g6][%mdl 2048] [#] aiming for g6! Keeping Black busy.} (20. Bxa5 Ra6 21. Be1 (21. Bxc7 d6 $16) 21... d5 $11) 20... Ba3 $2 {[%emt 0:03:28]} (20... d5 {is more resistant.}) 21. bxa3 {[%emt 0:00:29]} Qe7 {[%emt 0:06:00]} 22. Bg4 {[%emt 0:00:56] Strongly threatening g6.} (22. Bxa5 $2 Qxa3+ 23. Kd2 Qxa5+ 24. Kc1 Qa3+ (24... Qxa2 $2 25. Bd1 $19) 25. Kd2 Qc3+ (25... Qxa2 26. Rc1 $17) 26. Kc1 Rb2 $19) 22... Qxa3+ {[%emt 0:03:44]} 23. Kd1 {[%emt 0:00:23]} Qxa2 {[%emt 0:05:07] [#]} 24. g6 $1 {[%emt 0:02:21] h6 is the strong threat.} Qb1+ {[%emt 0:07:01]} (24... Rb2 25. h6) 25. Ke2 {[%emt 0:03:25]} Qxc2 {[%emt 0:00:12]} 26. Rc1 {[%emt 0:00:28]} Qa2 {[%emt 0:00:38]} 27. h6 {[%emt 0:00:56]} Rxg6 {[%emt 0:05:27]} 28. hxg7 {[%emt 0:00:12] White threatens Qh2 and mate.} ({Not} 28. Rxc7 d5 29. hxg7 (29. Rxc8 Rxc8 30. hxg7 Rc2 $11) 29... Bxg4+ 30. Ke1 Kxg7 $11 (30... Rxg7 31. Qh2 Qb1+ 32. Bc1)) 28... Kxg7 {[%emt 0:01:49]} 29. Qh3 {[%emt 0:00:43] White mates.} Rg8 {[%emt 0:00:51]} 30. Rxc7 {[%emt 0:01:10]} Kf6 {[%emt 0:02:08]} 31. Qh4+ {[%emt 0:00:20]} ({Inferior is} 31. Bxd7 Rg2+ 32. Kf1 Rf2+ 33. Kxf2 Qxd2+ 34. Kf1 Qd1+ 35. Kf2 Qd2+ 36. Kf1 Qd1+ 37. Kf2 Qd2+ $11) 31... Kg7 {[%emt 0:00:07]} 32. e5 {[%emt 0:03:41] Weighted Error Value: White=0.05 (flawless) /Black=0.52.  Mistake:       	---       	Black=3      Inaccurate:     	---       	Black=2      OK:         	White=9     	Black=4      Best:        	White=1     	Black=1} 1-0

[Event "Mitropa Cup Women 2024"]
[Site "Apolda"]
[Date "2024.02.18"]
[Round "4.3"]
[White "Sankova, Stella"]
[Black "Klek, Hanna Marie"]
[Result "1/2-1/2"]
[ECO "C45"]
[WhiteElo "2124"]
[BlackElo "2284"]
[Annotator "TA"]
[PlyCount "61"]
[EventDate "2024.02.15"]
[EventType "team-tourn"]
[EventCountry "GER"]
[SourceTitle "playchess.com"]
[Source "ChessBase"]
[SourceQuality "1"]
[WhiteTeam "Slovakia"]
[BlackTeam "Germany"]
[WhiteTeamCountry "SVK"]
[BlackTeamCountry "GER"]
[TimeControl "40/5400+30:1800+30"]

{[%evp 11,61,0,1,9,22,34,31,0,0,0,17,0,31,39,46,41,43,28,53,48,69,68,69,51,54,34,51,0,18,12,12,-34,0,0,13,10,21,4,18,13,41,40,41,53,51,41,35,33,33,18,28,23]} 1. e4 {[%emt 0:00:03]} e5 {[%emt 0:00:05]} 2. Nf3 {[%emt 0:00:38]} Nc6 {[%emt 0:00:07]} 3. d4 {[%emt 0:00:03]} exd4 {[%emt 0:00:11]} 4. Nxd4 {[%emt 0:00:05]} Bc5 {[%emt 0:00:54]} 5. Nb3 {[%emt 0:00:05]} Bb6 {[%emt 0:00:06]} 6. Nc3 {[%emt 0:00:15]} Nf6 {[%emt 0:01:09]} 7. Qe2 {[%emt 0:01:33]} d6 {[%emt 0:04:19]} 8. Bg5 {[%emt 0:02:06][%cal Bc1g5,Bg5h4,Bh4g3][%mdl 32]} h6 {[%emt 0:00:32]} 9. Bh4 {[%emt 0:00:05] Weiß steht etwas besser.} g5 {[%emt 0:04:02]} 10. Bg3 {[%emt 0:00:07]} Qe7 {[%emt 1:24:05]} 11. O-O-O {[%emt 0:03:51]} Bg4 {[%emt 0:00:00]} 12. f3 {[%emt 0:00:32]} Bd7 {[%emt 0:00:00]} 13. Qd2 {[%emt 0:06:21]} O-O-O {[%emt 0:00:00]} 14. Kb1 {[%emt 0:01:21]} Ne5 {[%emt 0:00:00]} 15. h4 {[%emt 0:05:13]} Rhg8 {[%emt 0:00:00]} 16. hxg5 {[%emt 0:03:23]} hxg5 {[%emt 0:00:00]} 17. Bd3 {[%emt 0:05:40]} Kb8 {[%emt 0:00:00]} 18. Rh6 {[%emt 0:06:27]} Be6 {[%emt 0:00:00]} 19. Qe2 {[%emt 0:06:47]} (19. Be2 $14) 19... Nfd7 {[%emt 0:00:00]} 20. Rdh1 {[%emt 0:06:39]} Rde8 {[%emt 0:00:00]} 21. Nd2 {[%emt 0:06:37]} (21. Bf2 $11 {war vorzuziehen.}) 21... Ba5 {[%emt 0:00:00]} 22. Nb5 {[%emt 0:00:45]} Qd8 {[%emt 0:00:00]} 23. Nd4 {[%emt 0:03:55]} Rh8 {[%emt 0:00:00]} 24. Nxe6 {[%emt 0:08:48]} fxe6 {[%emt 0:00:00]} 25. Nc4 {[%emt 0:02:15]} Nxc4 {[%emt 0:00:00]} 26. Bxc4 {[%emt 0:00:08]} Rxh6 {[%emt 0:00:00]} 27. Rxh6 {[%emt 0:00:05]} Rh8 {[%emt 0:00:00]} 28. Rxh8 {[%emt 0:00:44]} (28. Rxe6 $2 {zu gefräßig.} Rh1+ $19) 28... Qxh8 {[%emt 0:00:00]} 29. a3 {[%emt 0:01:27]} (29. Bxe6 $2 {ist das falsche Schlagen.} Qh1+ $19) 29... Qf6 {[%emt 0:00:00]} 30. Qe3 {[%emt 0:08:15]} Bb6 {[%emt 0:00:15]} 31. Qd2 {[%emt 0:00:25] Gewichteter Fehlerwert: Weiß=0.12 (sehr präzise) /Schwarz=0.11 (sehr präzise) .  Fehler:       	Weiß=2     	---        Ungenau:       	Weiß=1     	Schwarz=3     OK:         	Weiß=5     	Schwarz=6     Bester:       	Weiß=1     	---} 1/2-1/2

[Event "Mitropa Cup Women 2024"]
[Site "Apolda"]
[Date "2024.02.18"]
[Round "4.4"]
[White "Dolzhykova, Kateryna"]
[Black "Sevcikova, Lucia"]
[Result "1/2-1/2"]
[ECO "C02"]
[WhiteElo "2227"]
[BlackElo "2007"]
[Annotator "TA"]
[PlyCount "119"]
[EventDate "2024.02.15"]
[EventType "team-tourn"]
[EventCountry "GER"]
[SourceTitle "playchess.com"]
[Source "ChessBase"]
[SourceQuality "1"]
[WhiteTeam "Germany"]
[BlackTeam "Slovakia"]
[WhiteTeamCountry "GER"]
[BlackTeamCountry "SVK"]
[TimeControl "40/5400+30:1800+30"]

{[%evp 14,119,16,10,15,1,19,20,30,31,59,36,36,8,10,6,27,18,63,0,0,-57,-48,-60,-51,-77,-26,-222,-227,-285,-258,-393,-414,-398,-174,-189,-183,-187,-235,-190,-179,-168,-121,-121,-125,-123,-121,-114,-126,-145,-111,-101,-120,-136,-129,-121,-99,-104,-82,-94,-94,-95,-94,-94,-94,-94,-94,-94,0,0,0,-13,-7,-13,0,0,0,0,0,0,0,0,0,-100,-100,-100,-100,-100,-100,-100,0,0,0,0,0,0,0,0,0,0,0,0,0,0,0,0,0,0]} 1. e4 {[%emt 0:00:02]} e6 {[%emt 0:00:04]} 2. d4 {[%emt 0:00:09]} d5 {[%emt 0:00:05]} 3. e5 {[%emt 0:00:05]} c5 {[%emt 0:00:12]} 4. c3 {[%emt 0:00:15]} Qb6 {[%emt 0:01:15]} 5. Nf3 {[%emt 0:00:22]} Bd7 {[%emt 0:02:03]} 6. Be2 {[%emt 0:00:45]} cxd4 {[%emt 0:07:22]} 7. cxd4 {[%emt 0:00:14]} Bb5 {[%emt 0:01:49]} 8. Nc3 {[%emt 0:01:30][%cal Bb1c3,Bc3e2,Be2f4][%mdl 32]} Bxe2 {[%emt 0:00:22] C02: French: Advance Variation.} 9. Nxe2 {[%emt 0:00:34]} Bb4+ {[%emt 0:06:53] 9...Ne7 is vanishing.} 10. Kf1 {[%emt 0:00:22]} Nd7 {[%emt 0:09:18]} 11. g3 $146 {[%emt 0:03:20]} ({Predecessor:} 11. h4 Rc8 12. Rh3 a6 13. h5 h6 14. Bf4 Bf8 15. Rc1 Ne7 16. Rxc8+ Nxc8 17. Qc2 {1-0 Ni,S (2332)-Yang,Y (2066) CHN-ch (Women) 2023 (10)}) 11... Qa6 {[%emt 0:06:02]} 12. Kg2 {[%emt 0:04:35]} Ne7 {[%emt 0:01:07]} 13. Nf4 {[%emt 0:05:04]} O-O {[%emt 0:04:32]} 14. h4 {[%emt 0:06:40]} Rac8 {[%emt 0:05:39]} 15. Nd3 {[%emt 0:09:35]} Ba5 {[%emt 0:04:00]} 16. b4 {[%emt 0:03:50]} (16. h5 $14) 16... Rc3 $1 $11 {[%emt 0:09:26]} 17. Nfe1 {[%emt 0:22:23]} ({Better is} 17. Nb2 $11 Bc7 (17... Bxb4 18. Bd2 $11) 18. Na4) 17... Bb6 $15 {[%emt 0:02:19]} 18. Bb2 {[%emt 0:06:42]} Rc4 {[%emt 0:01:33]} 19. Nc2 {[%emt 0:05:13]} Nf5 {[%emt 0:10:49]} (19... Rfc8 $17 20. Rc1 Qxa2) 20. Na3 $2 {[%emt 0:05:26]} (20. Ne3 $11 {and White has nothing to worry.} Nxe3+ 21. fxe3) 20... Rxd4 $1 $19 {[%emt 0:03:51]} 21. b5 {[%emt 0:08:24]} Qa5 $1 {[%emt 0:01:18] aiming for ...Ra4.} 22. Qb3 {[%emt 0:01:19] [#]} (22. Rc1 $142) 22... Qd2 $1 {[%emt 0:07:20]} 23. Bxd4 {[%emt 0:05:05]} Bxd4 {[%emt 0:00:22]} (23... Nxd4 $142 24. Qd1 Qc3) 24. Rae1 {[%emt 0:02:07]} Nc5 {[%emt 0:06:33]} 25. Nxc5 {[%emt 0:00:14]} Qxf2+ {[%emt 0:00:07]} 26. Kh3 {[%emt 0:00:01]} Bxc5 {[%emt 0:02:11]} 27. Rhf1 {[%emt 0:00:18][%cal Bh1f1,Bf1f3,Bf3c3][%mdl 32]} Qxg3+ {[%emt 0:02:50]} 28. Qxg3 $17 {[%emt 0:00:07]} Nxg3 {[%emt 0:00:03]} 29. Kxg3 {[%emt 0:00:27]} Bxa3 $19 {[%emt 0:00:03][%mdl 4096] Endgame. KRR-KRB} 30. Rf3 {[%emt 0:01:11]} Bc5 {[%emt 0:00:29]} 31. Re2 {[%emt 0:01:45]} Rd8 {[%emt 0:01:16]} 32. Rc3 {[%emt 0:00:34]} b6 {[%emt 0:00:21][%cal Oa7a6]} 33. a4 {[%emt 0:01:20]} Kf8 {[%emt 0:01:25]} 34. h5 {[%emt 0:00:49]} h6 {[%emt 0:00:25]} 35. Kf3 {[%emt 0:01:12]} d4 {[%emt 0:00:57]} 36. Rd3 {[%emt 0:01:16] [#]} Rd5 $1 {[%emt 0:00:09]} 37. Re4 {[%emt 0:00:55]} Ke7 {[%emt 0:00:45]} 38. Kg2 {[%emt 0:02:10]} f5 {[%emt 0:01:36]} 39. Re2 {[%emt 0:00:45]} Kf7 {[%emt 0:00:58]} 40. Kf3 {[%emt 0:00:48]} Be7 {[%emt 0:01:29]} (40... Bb4 $17 41. Rg2 Bc3 (41... Rxe5 42. Rxd4 Be7 43. Rd7 $11)) 41. Rc2 $11 {[%emt 0:03:51]} Bc5 {[%emt 0:07:36]} 42. Kf4 {[%emt 0:01:59]} Rd7 {[%emt 0:02:08]} 43. Rcd2 {[%emt 0:03:26]} a6 {[%emt 0:05:08]} 44. bxa6 {[%emt 0:05:42]} Ra7 {[%emt 0:00:29]} 45. a5 {[%emt 0:02:31]} Rxa6 {[%emt 0:04:36]} (45... bxa5 $2 {is the wrong capture.} 46. Rc2 Bb4 (46... Bb6 $2 47. Rc6 $18) 47. Rc6 $18) 46. axb6 {[%emt 0:00:08]} Rxb6 {[%emt 0:00:05]} 47. Rc2 {[%emt 0:03:33]} Rb5 {[%emt 0:00:39]} 48. Rg2 {[%emt 0:01:43] [#]} (48. Ra2 $11 {keeps the balance.}) 48... Be7 $1 $17 {[%emt 0:03:48]} 49. Rxd4 {[%emt 0:01:21]} Bg5+ {[%emt 0:00:19]} 50. Rxg5 {[%emt 0:00:15]} hxg5+ {[%emt 0:00:04]} 51. Kxg5 {[%emt 0:00:03] Rd7+ would now be deadly.} Rxe5 {[%emt 0:07:38] KR-KR} (51... Rb2 $17 {White must now prevent ...Kg8.} 52. Rd7+ Kf8) 52. Rd7+ $11 {[%emt 0:00:06]} Kf8 {[%emt 0:00:03]} 53. Kg6 {[%emt 0:01:24] Rf7+ would kill now.} Re3 {[%emt 0:02:23] And now ...Rg3+ would win.} 54. Rf7+ {[%emt 0:00:21]} Ke8 {[%emt 0:00:04] ( -> ...Rg3+)} 55. Rxg7 {[%emt 0:00:52] White wants to mate with h6.} Rg3+ {[%emt 0:01:35]} 56. Kf6 {[%emt 0:00:22]} Rh3 $1 {[%emt 0:00:17]} 57. Kxe6 {[%emt 0:01:49]} Kf8 {[%emt 0:00:12] Against Rg8+} 58. Rf7+ {[%emt 0:01:44]} Kg8 {[%emt 0:00:12]} 59. Rxf5 {[%emt 0:00:16]} Kh7 {[%emt 0:00:19]} 60. Rf7+ {[%emt 0:00:38]} 1/2-1/2

[Event "Mitropa Cup Women 2024"]
[Site "Apolda"]
[Date "2024.02.18"]
[Round "4.5"]
[White "Terbe, Julianna"]
[Black "Brunello, Marina"]
[Result "1/2-1/2"]
[ECO "A48"]
[WhiteElo "2315"]
[BlackElo "2345"]
[Annotator "TA"]
[PlyCount "71"]
[EventDate "2024.02.15"]
[EventType "team-tourn"]
[EventCountry "GER"]
[SourceTitle "playchess.com"]
[Source "ChessBase"]
[SourceQuality "1"]
[WhiteTeam "Hungary"]
[BlackTeam "Italy"]
[WhiteTeamCountry "HUN"]
[BlackTeamCountry "ITA"]
[TimeControl "40/5400+30:1800+30"]

{[%evp 19,71,14,21,18,24,7,27,22,36,12,11,0,14,5,20,23,27,26,22,31,25,32,32,37,45,35,32,33,53,27,41,47,47,48,32,0,0,0,0,0,0,0,0,0,13,12,18,17,33,0,8,0,31,0]} 1. d4 {[%emt 0:00:15]} Nf6 {[%emt 0:01:43]} 2. Nf3 {[%emt 0:00:08]} b6 {[%emt 0:00:06]} 3. Bf4 {[%emt 0:00:48]} Bb7 {[%emt 0:00:07]} 4. e3 {[%emt 0:00:54]} g6 {[%emt 0:00:24]} 5. h3 {[%emt 0:01:24]} Bg7 {[%emt 0:00:07]} 6. Be2 {[%emt 0:00:26]} O-O {[%emt 0:00:07]} 7. O-O {[%emt 0:00:05]} d6 {[%emt 0:00:03]} 8. a4 {[%emt 0:00:13]} Nbd7 {[%emt 0:00:42]} 9. c3 {[%emt 0:01:48]} c5 {[%emt 0:04:44]} 10. Nbd2 {[%emt 0:00:32]} Ne4 {[%emt 0:02:40]} 11. Nxe4 {[%emt 0:09:52]} Bxe4 {[%emt 0:00:06]} 12. Nd2 {[%emt 0:00:04]} Bb7 {[%emt 0:00:26]} 13. Bg3 {[%emt 0:08:40] White has an edge.} a6 {[%emt 0:04:42]} 14. b4 {[%emt 0:10:39]} Rc8 {[%emt 0:15:55]} 15. Qb3 {[%emt 0:07:31]} cxd4 {[%emt 0:13:58]} 16. cxd4 {[%emt 0:00:41]} Rc7 {[%emt 0:52:40]} 17. Rac1 {[%emt 0:02:59]} Qb8 {[%emt 0:00:30]} 18. b5 {[%emt 0:10:02]} a5 {[%emt 0:00:00]} 19. Bc4 {[%emt 0:01:00]} Nf6 {[%emt 0:00:00]} 20. Rc2 {[%emt 0:08:52]} Rcc8 {[%emt 0:00:00]} 21. Rfc1 {[%emt 0:03:46]} Qa8 {[%emt 0:00:00]} 22. f3 {[%emt 0:03:12]} (22. Bh4 {looks sharper.} Bh6 23. Qd3 Rfe8 24. Kh2) 22... Bh6 {[%emt 0:00:00]} 23. Bf2 {[%emt 0:04:23]} Kg7 {[%emt 0:00:00]} 24. Be2 {[%emt 0:03:50]} Rxc2 {[%emt 0:00:00]} 25. Rxc2 {[%emt 0:00:04]} Nd5 {[%emt 0:00:00]} 26. Nc4 {[%emt 0:06:46] e4 would now be deadly.} (26. e4 $5 Nb4 $8 27. Nc4 $11 (27. Rb2 d5 $15)) 26... Nb4 {[%emt 0:00:00]} 27. Rc3 {[%emt 0:00:10][%cal Oe3e4] aiming for e4!} Qd8 {[%emt 0:00:00]} 28. Qb2 {[%emt 0:04:50][%cal Od4d5]} Kg8 {[%emt 0:00:00]} 29. Qd2 {[%emt 0:04:22]} Nd5 {[%emt 0:00:00]} 30. Rc2 {[%emt 0:00:51]} Nb4 {[%emt 0:00:00]} 31. Rc3 {[%emt 0:00:44]} Nd5 {[%emt 0:00:00]} 32. Rc1 {[%emt 0:01:31]} Nb4 {[%emt 0:00:00]} 33. Nb2 {[%emt 0:02:33]} Qd7 {[%emt 0:00:00]} 34. Nc4 {[%emt 0:01:59]} Qd8 {[%emt 0:00:00]} 35. Nb2 {[%emt 0:00:03]} Qd7 {[%emt 0:00:00]} 36. Nc4 {[%emt 0:01:16] Weighted Error Value: White=0.07 (flawless) /Black=0.05 (flawless) .  Inaccurate:     	White=3     	---        OK:         	White=7     	Black=11} 1/2-1/2